fUSD/lending_fUSD_20250309
["ID","MTS","AMOUNT","RATE_DAILY","PERIOD"]
[355738804,1741521041523,-214.64895752,9.192e-05,2]
[355738805,1741521041532,-151.0,9.192e-05,2]
[355738806,1741521041542,-151.0,9.192e-05,2]
[355738807,1741521041551,-202.636689,9.192e-05,2]
[355738808,1741521041561,-151.0,9.192e-05,2]
[355738809,1741521041571,-151.0,9.192e-05,2]
[355738810,1741521041580,-229.835295,9.192e-05,2]
[355738811,1741521041590,-229.835295,9.192e-05,2]
[355738812,1741521041599,-278.285232,9.192e-05,2]
[355738813,1741521041609,-229.835295,9.192e-05,2]
[355738814,1741521041619,-229.835295,9.192e-05,2]
[355738815,1741521041629,-519.604178,9.192e-05,2]
[355738816,1741521041638,-519.604178,9.192e-05,2]
[355738817,1741521041647,-519.604178,9.192e-05,2]
[355738818,1741521041659,-519.604178,9.192e-05,2]
[355738819,1741521041670,-151.0,9.192e-05,2]
[355738820,1741521041679,-151.0,9.192e-05,2]
[355738821,1741521041688,-535.55507,9.192e-05,2]
[355738822,1741521041699,-535.55507,9.192e-05,2]
[355738823,1741521041708,-535.55507,9.192e-05,2]
[355738824,1741521041718,-535.55507,9.192e-05,2]
[355738825,1741521041727,-525.386125,9.192e-05,2]
[355738826,1741521041739,-525.386125,9.192e-05,2]
[355738827,1741521041749,-525.386125,9.192e-05,2]
[355738828,1741521041758,-525.386125,9.192e-05,2]
[355738829,1741521041767,-237.650827,9.192e-05,2]
[355738830,1741521041777,-237.650827,9.192e-05,2]
[355738831,1741521041786,-630.479291,9.192e-05,2]
[355738832,1741521041795,-630.479291,9.192e-05,2]
[355738833,1741521041804,-66.02977614,9.192e-05,2]
[355738834,1741521042324,-171.62105086,9.192e-05,2]
[355738835,1741521042334,-237.650827,9.192e-05,2]
[355738836,1741521042344,-630.479291,9.192e-05,2]
[355738837,1741521042354,-630.479291,9.192e-05,2]
[355738838,1741521042366,-940.075125,9.192e-05,2]
[355738839,1741521042376,-940.075125,9.192e-05,2]
[355738840,1741521042386,-632.03478155,9.192e-05,2]
[355738841,1741521042658,-500.0,9.105e-05,2]
[355738842,1741521042685,-308.04034345,9.192e-05,2]
[355738843,1741521042709,-575.95965655,9.192e-05,2]
[355738844,1741521043131,-281.78311804,9.105e-05,2]
[355738845,1741521043144,-218.21688196,9.105e-05,2]
[355738846,1741521043154,-70.97040005,9.105e-05,2]
[355738847,1741521043166,-429.02959995,9.105e-05,2]
[355738848,1741521043176,-500.0,9.105e-05,2]
[355738849,1741521043187,-500.0,9.105e-05,2]
[355738850,1741521043197,-500.0,9.105e-05,2]
[355738851,1741521043207,-500.0,9.105e-05,2]
[355738853,1741521043218,-1038.1,9.105e-05,2]
[355738854,1741521043228,-500.0,9.106e-05,2]
[355738855,1741521043238,-142.91569922,9.106e-05,2]
[355738856,1741521043251,-357.08430078,9.106e-05,2]
[355738857,1741521043262,-595.17,9.107e-05,2]
[355738858,1741521043272,-364.11546845,9.192e-05,2]
[355738859,1741521043282,-151.0,9.192e-05,2]
[355738860,1741521043293,-151.0,9.192e-05,2]
[355738861,1741521043303,-493.153444,9.192e-05,2]
[355738862,1741521043313,-493.153444,9.192e-05,2]
[355738863,1741521043323,-493.153444,9.192e-05,2]
[355738865,1741521043333,-493.153444,9.192e-05,2]
[355738867,1741521043343,-1999.263306,9.192e-05,2]
[355738869,1741521043353,-1999.263306,9.192e-05,2]
[355738870,1741521043363,-1999.263306,9.192e-05,2]
[355738871,1741521043373,-1999.263306,9.192e-05,2]
[355738872,1741521043383,-661.621773,9.192e-05,2]
[355738873,1741521043393,-661.621773,9.192e-05,2]
[355738874,1741521043403,-819.019746,9.192e-05,2]
[355738875,1741521043413,-819.019746,9.192e-05,2]
[355738876,1741521043424,-661.621773,9.192e-05,2]
[355738877,1741521043434,-168.89162748,9.192e-05,2]
[355738878,1741521043455,-330.30015207,9.192e-05,2]
[355738879,1741521043511,-162.42999345,9.192e-05,2]
[355738880,1741521043521,-491.6345549,9.192e-05,2]
[355738889,1741521043962,-500.0,9.106e-05,2]
[355738890,1741521043972,-327.3851911,9.192e-05,2]
[355738892,1741521043982,-511.65263701,9.192e-05,2]
[355738912,1741521048666,-307.36710899,9.192e-05,2]
[355738913,1741521048678,-167.436779,9.192e-05,2]
[355738914,1741521048690,-82.25611201,9.192e-05,2]
[355738915,1741521048706,-85.18066699,9.192e-05,2]
[355738916,1741521048719,-194.88680991,9.192e-05,2]
[355738917,1741521048743,-42.93424509,9.192e-05,2]
[355738918,1741521048757,-151.0,9.192e-05,2]
[355738919,1741521048771,-237.821055,9.192e-05,2]
[355738920,1741521048784,-151.0,9.192e-05,2]
[355738921,1741521048796,-151.0,9.192e-05,2]
[355738922,1741521048810,-310.081406,9.192e-05,2]
[355738923,1741521048822,-160.265915,9.192e-05,2]
[355738924,1741521048833,-310.081406,9.192e-05,2]
[355738925,1741521048845,-10000.0,9.192e-05,2]
[355738926,1741521048857,-10000.0,9.192e-05,2]
[355738927,1741521048873,-10000.0,9.192e-05,2]
[355738928,1741521048886,-10000.0,9.192e-05,2]
[355738929,1741521048898,-224.898912,9.192e-05,2]
[355738930,1741521048911,-3810.156978,9.192e-05,2]
[355738931,1741521048923,-3810.156978,9.192e-05,2]
[355738932,1741521048936,-224.898912,9.192e-05,2]
[355738933,1741521048949,-3810.156978,9.192e-05,2]
[355738934,1741521048962,-3810.156978,9.192e-05,2]
[355738935,1741521048975,-230.396779,9.192e-05,2]
[355738936,1741521048987,-230.396779,9.192e-05,2]
[355738937,1741521048999,-463.939953,9.192e-05,2]
[355738938,1741521049010,-230.396779,9.192e-05,2]
[355738939,1741521049021,-463.939953,9.192e-05,2]
[355738940,1741521049033,-230.396779,9.192e-05,2]
[355738941,1741521049045,-463.939953,9.192e-05,2]
[355738942,1741521049057,-463.939953,9.192e-05,2]
[355738943,1741521049068,-151.0,9.192e-05,2]
[355738944,1741521049081,-151.0,9.192e-05,2]
[355738945,1741521049092,-151.0,9.192e-05,2]
[355738946,1741521049103,-151.0,9.192e-05,2]
[355738947,1741521049117,-290.19853,9.192e-05,2]
[355738948,1741521049128,-290.19853,9.192e-05,2]
[355738949,1741521049140,-290.19853,9.192e-05,2]
[355738950,1741521049152,-290.19853,9.192e-05,2]
[355738951,1741521049164,-628.953742,9.192e-05,2]
[355738952,1741521049175,-628.953742,9.192e-05,2]
[355738953,1741521049187,-628.953742,9.192e-05,2]
[355738954,1741521049197,-628.953742,9.192e-05,2]
[355738955,1741521049209,-151.0,9.192e-05,2]
[355738956,1741521049221,-151.0,9.192e-05,2]
[355738957,1741521049233,-151.0,9.192e-05,2]
[355738958,1741521049244,-151.0,9.192e-05,2]
[355738959,1741521049255,-151.0,9.192e-05,2]
[355738960,1741521049266,-338.160186,9.192e-05,2]
[355738961,1741521049278,-338.160186,9.192e-05,2]
[355738962,1741521049290,-338.160186,9.192e-05,2]
[355738963,1741521049301,-338.160186,9.192e-05,2]
[355738964,1741521049312,-338.160186,9.192e-05,2]
[355738965,1741521049323,-338.160186,9.192e-05,2]
[355738966,1741521049334,-334.394274,9.192e-05,2]
[355738967,1741521049345,-500.0,9.192e-05,2]
[355738968,1741521049356,-334.394274,9.192e-05,2]
[355738969,1741521049368,-334.394274,9.192e-05,2]
[355738970,1741521049380,-334.394274,9.192e-05,2]
[355738971,1741521049393,-334.394274,9.192e-05,2]
[355738972,1741521049404,-334.394274,9.192e-05,2]
[355738973,1741521049415,-40000.0,9.193e-05,2]
[355738974,1741521049426,-40000.0,9.193e-05,2]
[355738975,1741521049438,-349.0,9.193e-05,2]
[355738976,1741521049449,-349.0,9.193e-05,2]
[355738977,1741521049459,-349.0,9.193e-05,2]
[355738978,1741521049470,-349.0,9.193e-05,2]
[355738979,1741521049481,-189.61562,9.193e-05,2]
[355738980,1741521049491,-189.615612,9.193e-05,2]
[355738981,1741521049502,-413.309956,9.193e-05,2]
[355738982,1741521049513,-413.309951,9.193e-05,2]
[355738983,1741521049525,-214.304434,9.193e-05,2]
[355738984,1741521049535,-455.650652,9.193e-05,2]
[355738985,1741521049547,-455.65065,9.193e-05,2]
[355738986,1741521049558,-417.775845,9.193e-05,2]
[355738987,1741521049570,-417.775845,9.193e-05,2]
[355738988,1741521049580,-417.775845,9.193e-05,2]
[355738989,1741521049592,-417.775839,9.193e-05,2]
[355738990,1741521049603,-177.311011,9.193e-05,2]
[355738991,1741521049614,-177.311014,9.193e-05,2]
[355738992,1741521049625,-151.0,9.193e-05,2]
[355738993,1741521049637,-151.0,9.193e-05,2]
[355738994,1741521049648,-424.05292,9.193e-05,2]
[355738995,1741521049659,-424.05292,9.193e-05,2]
[355738996,1741521049684,-424.05292,9.193e-05,2]
[355738997,1741521049698,-424.05292,9.193e-05,2]
[355738998,1741521049710,-151.0,9.193e-05,2]
[355738999,1741521049723,-151.0,9.193e-05,2]
[355739000,1741521049736,-420.948943,9.193e-05,2]
[355739001,1741521049749,-420.948943,9.193e-05,2]
[355739002,1741521049761,-223.052818,9.193e-05,2]
[355739003,1741521049773,-484.983395,9.193e-05,2]
[355739004,1741521049789,-484.983387,9.193e-05,2]
[355739005,1741521049800,-208.889532,9.193e-05,2]
[355739006,1741521049812,-241.573998,9.193e-05,2]
[355739007,1741521049823,-151.0,9.193e-05,2]
[355739008,1741521049834,-208.889525,9.193e-05,2]
[355739009,1741521049846,-241.573988,9.193e-05,2]
[355739010,1741521049858,-271.593905,9.193e-05,2]
[355739011,1741521049870,-271.5939,9.193e-05,2]
[355739012,1741521049881,-193.903272,9.193e-05,2]
[355739013,1741521049893,-193.90327,9.193e-05,2]
[355739014,1741521049904,-151.0,9.193e-05,2]
[355739015,1741521049915,-285.942707,9.193e-05,2]
[355739016,1741521049927,-151.0,9.193e-05,2]
[355739017,1741521049938,-151.0,9.193e-05,2]
[355739018,1741521049950,-285.942716,9.193e-05,2]
[355739019,1741521049961,-151.0,9.193e-05,2]
[355739020,1741521049972,-229.835295,9.193e-05,2]
[355739021,1741521049983,-229.835295,9.193e-05,2]
[355739022,1741521049994,-519.604178,9.193e-05,2]
[355739023,1741521050005,-519.604178,9.193e-05,2]
[355739024,1741521050334,-151.0,9.193e-05,2]
[355739025,1741521050359,-535.55507,9.193e-05,2]
[355739026,1741521050379,-535.555068,9.193e-05,2]
[355739027,1741521050388,-525.386125,9.193e-05,2]
[355739028,1741521050398,-525.386125,9.193e-05,2]
[355739029,1741521050407,-237.650827,9.193e-05,2]
[355739030,1741521050417,-630.479291,9.193e-05,2]
[355739031,1741521050426,-237.650823,9.193e-05,2]
[355739032,1741521050435,-630.479291,9.193e-05,2]
[355739033,1741521050445,-940.075125,9.193e-05,2]
[355739034,1741521050454,-940.075118,9.193e-05,2]
[355739035,1741521050464,-151.0,9.193e-05,2]
[355739036,1741521050473,-493.153444,9.193e-05,2]
[355739037,1741521050482,-493.153444,9.193e-05,2]
[355739038,1741521050491,-493.153444,9.193e-05,2]
[355739039,1741521050500,-493.153449,9.193e-05,2]
[355739040,1741521050509,-1999.263306,9.193e-05,2]
[355739041,1741521050518,-1999.263313,9.193e-05,2]
[355739042,1741521050528,-661.621773,9.193e-05,2]
[355739043,1741521050537,-819.019746,9.193e-05,2]
[355739044,1741521050546,-661.621776,9.193e-05,2]
[355739045,1741521050556,-819.019747,9.193e-05,2]
[355739046,1741521050565,-167.436779,9.193e-05,2]
[355739047,1741521050574,-167.436779,9.193e-05,2]
[355739048,1741521050583,-167.436779,9.193e-05,2]
[355739049,1741521050592,-167.436779,9.193e-05,2]
[355739050,1741521050602,-237.821055,9.193e-05,2]
[355739051,1741521050611,-237.821055,9.193e-05,2]
[355739052,1741521050621,-151.0,9.193e-05,2]
[355739053,1741521050631,-151.0,9.193e-05,2]
[355739054,1741521050640,-237.821055,9.193e-05,2]
[355739055,1741521050649,-237.821052,9.193e-05,2]
[355739056,1741521050659,-151.0,9.193e-05,2]
[355739057,1741521050672,-310.081406,9.193e-05,2]
[355739058,1741521050681,-310.081406,9.193e-05,2]
[355739059,1741521050691,-310.081406,9.193e-05,2]
[355739060,1741521050701,-310.081412,9.193e-05,2]
[355739061,1741521050711,-10000.0,9.193e-05,2]
[355739062,1741521050720,-10000.0,9.193e-05,2]
[355739063,1741521050730,-224.898912,9.193e-05,2]
[355739064,1741521050739,-224.898912,9.193e-05,2]
[355739065,1741521050750,-3810.156978,9.193e-05,2]
[355739066,1741521050759,-224.898912,9.193e-05,2]
[355739067,1741521050768,-224.898903,9.193e-05,2]
[355739068,1741521050778,-3810.156976,9.193e-05,2]
[355739069,1741521050788,-230.396779,9.193e-05,2]
[355739070,1741521050797,-230.396779,9.193e-05,2]
[355739071,1741521050807,-230.396779,9.193e-05,2]
[355739072,1741521050817,-230.396787,9.193e-05,2]
[355739073,1741521050826,-463.939953,9.193e-05,2]
[355739074,1741521050835,-463.939953,9.193e-05,2]
[355739075,1741521050845,-463.939953,9.193e-05,2]
[355739076,1741521050854,-463.939951,9.193e-05,2]
[355739077,1741521050865,-151.0,9.193e-05,2]
[355739078,1741521050874,-151.0,9.193e-05,2]
[355739079,1741521050883,-151.0,9.193e-05,2]
[355739080,1741521050893,-290.19853,9.193e-05,2]
[355739081,1741521050902,-290.19853,9.193e-05,2]
[355739082,1741521050912,-290.19853,9.193e-05,2]
[355739083,1741521050921,-290.19853,9.193e-05,2]
[355739084,1741521050930,-628.953742,9.193e-05,2]
[355739085,1741521050939,-628.953742,9.193e-05,2]
[355739086,1741521050949,-628.953742,9.193e-05,2]
[355739087,1741521050958,-628.953742,9.193e-05,2]
[355739088,1741521050967,-151.0,9.193e-05,2]
[355739089,1741521050977,-151.0,9.193e-05,2]
[355739090,1741521050986,-151.0,9.193e-05,2]
[355739091,1741521050995,-338.160186,9.193e-05,2]
[355739092,1741521051004,-338.160186,9.193e-05,2]
[355739093,1741521051014,-625.89410896,9.193e-05,2]
[355739094,1741521051023,-334.394274,9.193e-05,2]
[355739095,1741521051032,-334.394274,9.193e-05,2]
[355739096,1741521051042,-269128.61856287,9.194e-05,3]
[355739097,1741521053065,-500.0,9.105e-05,2]
[355739098,1741521053075,-628.1,9.107e-05,2]
[355739099,1741521053085,-9370.65787404,9.194e-05,3]
[355739100,1741521053634,-256.2949975,9.105e-05,2]
[355739101,1741521053646,-357.6750025,9.105e-05,2]
[355739102,1741521053656,-601.22,9.105e-05,2]
[355739103,1741521053668,-500.0,9.106e-05,2]
[355739104,1741521053678,-500.0,9.107e-05,2]
[355739105,1741521053687,-518.54,9.107e-05,2]
[355739106,1741521053697,-894.56493187,9.194e-05,3]
[355739110,1741521230786,500.0,0.00028,120]
[355739111,1741521305363,1008.69,0.00028,120]
[355739113,1741521598032,1033.08760685,0.00028,120]
[355739114,1741521613617,2000.0,0.00028,120]
[355739314,1741522234984,-151.11,8.204e-05,2]
[355739315,1741522234995,-628.98523378,8.219e-05,2]
[355739316,1741522235094,-349.97130778,8.219e-05,2]
[355739317,1741522235108,-21.04345844,8.219e-05,2]
[355739318,1741522235117,-303.76147533,8.219e-05,2]
[355739319,1741522235129,-1383.96852467,8.219e-05,2]
[355739320,1741522235140,-315.47,8.219e-05,2]
[355739321,1741522235150,-229.51538826,8.76e-05,2]
[355739322,1741522235159,-10352.2121,9.003e-05,2]
[355739323,1741522235170,-72336.75418706,9.1e-05,2]
[355739324,1741522235183,-11994.02771814,9.1e-05,2]
[355739325,1741522235257,-576.31938897,9.1e-05,2]
[355739326,1741522235269,-836.99818261,9.1e-05,2]
[355739327,1741522235280,-558.80506623,9.1e-05,2]
[355739328,1741522235418,-2002.65164984,9.1e-05,2]
[355739329,1741522235432,-87237.92142217,9.1e-05,2]
[355739353,1741522237790,-13885.02116116,9.1e-05,2]
[355739354,1741522237841,-342.49536606,9.1e-05,2]
[355739355,1741522237896,-1697.17293,9.1e-05,2]
[355739366,1741522239894,-8786.88967395,9.1e-05,2]
[355739367,1741522239907,-254.4299238,9.1e-05,2]
[355739368,1741522239948,-1950.46989395,9.1e-05,2]
[355739370,1741522240506,-0.00051633,9.1e-05,2]
[355739371,1741522240523,-384832.15345973,9.1e-05,2]
[355739372,1741522240533,-21359.86388917,9.1e-05,2]
[355739373,1741522240543,-150.0,9.102e-05,2]
[355739374,1741522240552,-83223.43286402,9.102e-05,2]
[355739375,1741522240618,-999.5,9.102e-05,2]
[355739411,1741522244452,-1696.36467,9.102e-05,2]
[355739412,1741522244470,-1826.56600178,9.102e-05,2]
[355739413,1741522244490,-76297.74367598,9.102e-05,2]
[355739414,1741522244502,-614542.35038607,9.102e-05,2]
[355739415,1741522244512,-316.547706,9.103e-05,2]
[355739416,1741522244523,-243.933858,9.103e-05,2]
[355739417,1741522244532,-500.0,9.103e-05,2]
[355739418,1741522244542,-500.0,9.103e-05,2]
[355739419,1741522244552,-500.0,9.103e-05,2]
[355739420,1741522244562,-500.0,9.103e-05,2]
[355739421,1741522244572,-500.0,9.103e-05,2]
[355739422,1741522244581,-627.54,9.103e-05,2]
[355739423,1741522244590,-500.0,9.103e-05,2]
[355739424,1741522244600,-500.0,9.103e-05,2]
[355739425,1741522244609,-500.0,9.103e-05,2]
[355739426,1741522244619,-500.0,9.103e-05,2]
[355739427,1741522244629,-500.0,9.103e-05,2]
[355739428,1741522244638,-500.0,9.103e-05,2]
[355739429,1741522244648,-530.15,9.103e-05,2]
[355739430,1741522244658,-504.05,9.103e-05,2]
[355739431,1741522244667,-500.0,9.103e-05,2]
[355739432,1741522244677,-500.0,9.103e-05,2]
[355739433,1741522244686,-544.97,9.103e-05,2]
[355739434,1741522244697,-500.0,9.103e-05,2]
[355739435,1741522244707,-500.0,9.103e-05,2]
[355739436,1741522244716,-500.0,9.103e-05,2]
[355739437,1741522244726,-500.0,9.103e-05,2]
[355739438,1741522244735,-507.53,9.103e-05,2]
[355739439,1741522244744,-500.0,9.103e-05,2]
[355739440,1741522244754,-500.0,9.103e-05,2]
[355739441,1741522244764,-500.0,9.103e-05,2]
[355739442,1741522244773,-500.0,9.103e-05,2]
[355739443,1741522244783,-500.0,9.103e-05,2]
[355739444,1741522244792,-500.0,9.103e-05,2]
[355739445,1741522244801,-500.0,9.103e-05,2]
[355739446,1741522244811,-500.0,9.103e-05,2]
[355739447,1741522244820,-500.0,9.103e-05,2]
[355739448,1741522244829,-500.0,9.103e-05,2]
[355739449,1741522244839,-500.0,9.103e-05,2]
[355739450,1741522244848,-500.0,9.103e-05,2]
[355739451,1741522244857,-500.0,9.103e-05,2]
[355739452,1741522244867,-500.0,9.103e-05,2]
[355739453,1741522244876,-616.94,9.103e-05,2]
[355739454,1741522244886,-500.0,9.103e-05,2]
[355739455,1741522244896,-500.0,9.103e-05,2]
[355739456,1741522244905,-500.0,9.103e-05,2]
[355739457,1741522244914,-500.0,9.103e-05,2]
[355739458,1741522244924,-500.0,9.103e-05,2]
[355739459,1741522244933,-500.0,9.103e-05,2]
[355739460,1741522244943,-512.46141827,9.103e-05,2]
[355739461,1741522244953,-500.0,9.103e-05,2]
[355739462,1741522244962,-500.0,9.103e-05,2]
[355739463,1741522244971,-500.0,9.103e-05,2]
[355739464,1741522244980,-500.0,9.103e-05,2]
[355739465,1741522244989,-602.12,9.103e-05,2]
[355739466,1741522244999,-500.0,9.103e-05,2]
[355739467,1741522245009,-500.0,9.103e-05,2]
[355739468,1741522245020,-500.0,9.103e-05,2]
[355739469,1741522245032,-508.94,9.103e-05,2]
[355739470,1741522245042,-500.0,9.103e-05,2]
[355739471,1741522245051,-500.0,9.103e-05,2]
[355739472,1741522245061,-500.0,9.103e-05,2]
[355739473,1741522245071,-816.75,9.103e-05,2]
[355739474,1741522245080,-719.6,9.103e-05,2]
[355739475,1741522245089,-500.0,9.103e-05,2]
[355739476,1741522245099,-500.0,9.103e-05,2]
[355739477,1741522245108,-500.0,9.103e-05,2]
[355739478,1741522245117,-500.0,9.103e-05,2]
[355739479,1741522245126,-500.0,9.103e-05,2]
[355739480,1741522245135,-500.0,9.103e-05,2]
[355739481,1741522245145,-500.0,9.103e-05,2]
[355739482,1741522245154,-588.27,9.103e-05,2]
[355739483,1741522245163,-500.0,9.103e-05,2]
[355739484,1741522245173,-500.0,9.103e-05,2]
[355739485,1741522245182,-537.26,9.103e-05,2]
[355739486,1741522245191,-641.43,9.103e-05,2]
[355739487,1741522245202,-500.0,9.103e-05,2]
[355739488,1741522245211,-649.82,9.103e-05,2]
[355739489,1741522245220,-539.04,9.103e-05,2]
[355739490,1741522245230,-500.0,9.103e-05,2]
[355739491,1741522245240,-663.51,9.103e-05,2]
[355739492,1741522245250,-151.09,9.103e-05,2]
[355739493,1741522245260,-500.0,9.103e-05,2]
[355739494,1741522245269,-500.0,9.103e-05,2]
[355739495,1741522245279,-550.99,9.103e-05,2]
[355739496,1741522245289,-574.34,9.103e-05,2]
[355739497,1741522245298,-500.0,9.103e-05,2]
[355739499,1741522245308,-500.0,9.103e-05,2]
[355739501,1741522245318,-521.88,9.103e-05,2]
[355739502,1741522245328,-500.0,9.103e-05,2]
[355739504,1741522245337,-500.0,9.103e-05,2]
[355739506,1741522245347,-512.81,9.103e-05,2]
[355739507,1741522245357,-500.0,9.103e-05,2]
[355739509,1741522245366,-557.7,9.103e-05,2]
[355739511,1741522245376,-500.0,9.103e-05,2]
[355739512,1741522245386,-500.0,9.103e-05,2]
[355739514,1741522245395,-511.19,9.103e-05,2]
[355739516,1741522245405,-582.02,9.103e-05,2]
[355739518,1741522245415,-500.0,9.103e-05,2]
[355739520,1741522245424,-1301.46,9.103e-05,2]
[355739521,1741522245434,-3532.55,9.103e-05,2]
[355739522,1741522245444,-500.0,9.103e-05,2]
[355739523,1741522245454,-1119.16,9.103e-05,2]
[355739524,1741522245464,-613.89110963,9.103e-05,2]
[355739525,1741522245473,-500.0,9.103e-05,2]
[355739526,1741522245483,-1191.94,9.103e-05,2]
[355739527,1741522245493,-500.0,9.103e-05,2]
[355739528,1741522245503,-7843.39,9.103e-05,2]
[355739529,1741522245512,-1633.3,9.103e-05,2]
[355739530,1741522245522,-2490.53,9.103e-05,2]
[355739531,1741522245532,-500.0,9.103e-05,2]
[355739532,1741522245541,-617.79,9.103e-05,2]
[355739533,1741522245551,-454.99648431,9.103e-05,2]
[355739535,1741522245561,-580.92,9.103e-05,2]
[355739537,1741522245571,-539.68,9.103e-05,2]
[355739539,1741522245580,-913.96,9.103e-05,2]
[355739541,1741522245589,-500.0,9.103e-05,2]
[355739543,1741522245599,-550.04,9.103e-05,2]
[355739545,1741522245608,-2883.66,9.103e-05,2]
[355739547,1741522245618,-1265.96,9.103e-05,2]
[355739549,1741522245627,-500.0,9.103e-05,2]
[355739551,1741522245636,-1696.9,9.103e-05,2]
[355739553,1741522245645,-500.0,9.103e-05,2]
[355739555,1741522245654,-500.0,9.103e-05,2]
[355739557,1741522245665,-500.0,9.103e-05,2]
[355739559,1741522245675,-1688.09,9.103e-05,2]
[355739561,1741522245686,-500.0,9.103e-05,2]
[355739563,1741522245697,-676.59,9.103e-05,2]
[355739565,1741522245709,-1605.29,9.103e-05,2]
[355739568,1741522245720,-520.35,9.103e-05,2]
[355739570,1741522245732,-1543.22,9.103e-05,2]
[355739572,1741522245743,-500.0,9.103e-05,2]
[355739574,1741522245752,-500.0,9.103e-05,2]
[355739576,1741522245762,-500.0,9.103e-05,2]
[355739578,1741522245771,-500.0,9.103e-05,2]
[355739579,1741522245779,-799.54,9.103e-05,2]
[355739581,1741522245786,-500.0,9.103e-05,2]
[355739583,1741522245793,-1251.65,9.103e-05,2]
[355739584,1741522245803,-500.0,9.103e-05,2]
[355739585,1741522245812,-1000.0,9.103e-05,2]
[355739586,1741522245822,-1536.37,9.103e-05,2]
[355739587,1741522245832,-746.43,9.103e-05,2]
[355739588,1741522245842,-645.08,9.103e-05,2]
[355739589,1741522245852,-1589.37,9.103e-05,2]
[355739590,1741522245861,-500.0,9.103e-05,2]
[355739591,1741522245870,-500.0,9.103e-05,2]
[355739592,1741522245880,-500.0,9.103e-05,2]
[355739593,1741522245890,-500.0,9.103e-05,2]
[355739594,1741522245900,-1131.66,9.103e-05,2]
[355739595,1741522245910,-1357.75,9.103e-05,2]
[355739596,1741522245919,-1088.99,9.103e-05,2]
[355739597,1741522245928,-202.0115342,9.103e-05,2]
[355739598,1741522245939,-525.53,9.103e-05,2]
[355739599,1741522245950,-500.0,9.103e-05,2]
[355739600,1741522245960,-500.0,9.103e-05,2]
[355739601,1741522245970,-817.77,9.103e-05,2]
[355739602,1741522245980,-1178.92,9.103e-05,2]
[355739603,1741522245990,-2496.94,9.103e-05,2]
[355739604,1741522246000,-500.0,9.103e-05,2]
[355739605,1741522246010,-1100.83,9.103e-05,2]
[355739606,1741522246023,-1227.94,9.103e-05,2]
[355739607,1741522246034,-993.89,9.103e-05,2]
[355739608,1741522246044,-500.0,9.103e-05,2]
[355739610,1741522246054,-2068.97,9.103e-05,2]
[355739612,1741522246063,-1170.05,9.103e-05,2]
[355739613,1741522246073,-500.0,9.103e-05,2]
[355739614,1741522246082,-971.01,9.103e-05,2]
[355739615,1741522246092,-500.0,9.103e-05,2]
[355739617,1741522246103,-2134.46,9.103e-05,2]
[355739619,1741522246113,-3355.54,9.103e-05,2]
[355739620,1741522246122,-500.0,9.103e-05,2]
[355739622,1741522246131,-642.42,9.103e-05,2]
[355739624,1741522246141,-500.0,9.103e-05,2]
[355739626,1741522246150,-500.0,9.103e-05,2]
[355739628,1741522246159,-500.0,9.103e-05,2]
[355739630,1741522246168,-1534.19,9.103e-05,2]
[355739632,1741522246178,-1043.32,9.103e-05,2]
[355739634,1741522246187,-500.0,9.103e-05,2]
[355739636,1741522246199,-500.0,9.103e-05,2]
[355739638,1741522246208,-554.5,9.103e-05,2]
[355739640,1741522246217,-1106.56,9.103e-05,2]
[355739642,1741522246226,-537.25,9.103e-05,2]
[355739644,1741522246235,-500.0,9.103e-05,2]
[355739646,1741522246245,-1429.31,9.103e-05,2]
[355739648,1741522246254,-500.0,9.103e-05,2]
[355739650,1741522246263,-500.0,9.103e-05,2]
[355739652,1741522246273,-678.76,9.103e-05,2]
[355739654,1741522246282,-1747.88,9.103e-05,2]
[355739656,1741522246292,-500.0,9.103e-05,2]
[355739658,1741522246301,-500.0,9.103e-05,2]
[355739660,1741522246310,-199.48629954,9.103e-05,2]
[355739662,1741522246319,-500.0,9.103e-05,2]
[355739664,1741522246329,-500.0,9.103e-05,2]
[355739666,1741522246339,-5136.84,9.103e-05,2]
[355739668,1741522246349,-502.29778362,9.103e-05,2]
[355739670,1741522246358,-508.68428117,9.103e-05,2]
[355739672,1741522246367,-500.0,9.103e-05,2]